bitfinex-derivatives/quotes_SOLF0:USTF0_20220101
["timestamp","ask_amount","ask_price","bid_price","bid_amount"]
[1641074484311,27.66479,176.24,176.15,27.66479]
[1641074484511,3.0,176.23,176.15,27.66479]
[1641074484810,27.66479,176.24,176.15,27.66479]
[1641074485210,27.66479,176.27,176.15,27.66479]
[1641074486416,4.02892997,176.24,176.15,38.08936591]
[1641074487013,4.02892997,176.24,176.15,27.66479]
[1641074487215,4.02892997,176.23,176.15,27.66479]
[1641074487415,4.02892997,176.23,176.18,3.0]
[1641074487815,4.02892997,176.24,176.18,3.0]
[1641074488115,4.02892997,176.24,176.2,27.66479]
[1641074488915,4.02892997,176.26,176.2,27.66479]
[1641074489114,4.02892997,176.26,176.22,3.0]
[1641074489315,4.02892997,176.26,176.25,7.0]
[1641074489515,48.32463758,176.42,176.25,7.0]
[1641074489715,33.32463758,176.42,176.33,4.0]
[1641074490118,33.32463758,176.42,176.35,27.66479]
[1641074490519,3.0,176.41,176.33,27.66479]
[1641074490718,3.0,176.42,176.33,27.66479]
[1641074490920,3.0,176.43,176.29,5.66572238]
[1641074491118,3.0,176.44,176.29,9.90872238]
[1641074491319,3.0,176.43,176.29,9.90872238]
[1641074491517,30.66479,176.45,176.29,9.90872238]
[1641074492120,17.33289725,176.46,176.34,27.66479]
[1641074492922,3.0,176.46,176.34,27.66479]
[1641074493125,3.0,176.45,176.34,27.66479]
[1641074493929,3.0,176.46,176.34,27.66479]
[1641074494930,14.33289725,176.47,176.34,27.66479]
[1641074495132,14.33289725,176.47,176.34,34.66479]
[1641074495334,14.33289725,176.47,176.34,40.29879]
[1641074495731,14.33289725,176.47,176.34,45.96274741]
[1641074495931,14.33289725,176.47,176.35,3.0]
[1641074496132,14.33289725,176.47,176.39,27.66479]
[1641074496330,14.33289725,176.49,176.39,27.66479]
[1641074497032,27.66479,176.5,176.39,27.66479]
[1641074497233,3.0,176.49,176.39,27.66479]
[1641074498935,27.66479,176.5,176.39,27.66479]
[1641074501037,3.0,176.46,176.35,41.2909]
[1641074501637,27.66479,176.5,176.35,41.2909]
[1641074501837,3.0,176.45,176.35,41.2909]
[1641074502039,3.0,176.45,176.27,9.66620393]
[1641074502237,27.66479,176.44,176.32,27.66479]
[1641074502438,3.0,176.43,176.32,27.66479]
[1641074503439,10.01112393,176.43,176.32,27.66479]
[1641074504239,10.01112393,176.43,176.38,27.66479]
[1641074505041,10.01112393,176.46,176.38,27.66479]
[1641074505843,32.07397053,176.44,176.38,27.66479]
[1641074506246,3.0,176.43,176.35,27.66479]
[1641074506742,35.07397053,176.43,176.32,33.32938909]
[1641074507442,3.0,176.41,176.32,27.66479]
[1641074507642,3.0,176.41,176.28,48.46088289]
[1641074508043,35.07397053,176.41,176.28,48.46088289]
[1641074508242,62.73876053,176.41,176.3,27.66479]
[1641074508845,42.08509446,176.4,176.3,27.66479]
[1641074509242,3.0,176.39,176.3,27.66479]
[1641074510948,3.0,176.39,176.28,76.12567289]
[1641074510949,42.08509446,176.4,176.28,76.12567289]
[1641074511148,42.08509446,176.4,176.28,27.66479]
[1641074511352,3.0,176.32,176.28,27.66479]
[1641074511548,32.07397053,176.35,176.19,3.0]
[1641074512150,32.07397053,176.35,176.22,3.0]
[1641074512351,35.07397053,176.35,176.26,27.66479]
[1641074512750,32.07397053,176.34,176.26,27.66479]
[1641074513650,3.0,176.35,176.26,27.66479]
[1641074513651,12.08265806,176.32,176.26,27.66479]
[1641074514652,12.08265806,176.32,176.28,3.0]
[1641074514854,32.07397053,176.36,176.3,8.66540139]
[1641074515054,32.07397053,176.36,176.3,5.66540139]
[1641074515553,18.50235254,176.42,176.3,5.66540139]
[1641074515554,35.07397053,176.42,176.3,5.66540139]
[1641074515754,3.0,176.38,176.27,6.05524993]
[1641074516153,3.0,176.37,176.26,27.66479]
[1641074516354,27.66479,176.36,176.26,27.66479]
[1641074517158,10.01112393,176.35,176.26,27.66479]
[1641074518362,62.73876053,176.36,176.26,27.66479]
[1641074518563,30.66479,176.36,176.26,27.66479]
[1641074519061,3.0,176.35,176.26,27.66479]
[1641074521366,3.0,176.33,176.23,27.66479]
[1641074522365,3.0,176.32,176.23,27.66479]
[1641074525269,27.66479,176.33,176.23,27.66479]
[1641074525469,32.07397053,176.39,176.32,7.0]
[1641074525769,32.07397053,176.35,176.32,12.66379701]
[1641074525970,32.07397053,176.35,176.32,5.66379701]
[1641074526269,3.05347053,176.46,176.33,1.26403144]
[1641074526471,3.0,176.44,176.35,27.66479]
[1641074526668,3.05347053,176.46,176.35,27.66479]
[1641074526870,3.0,176.41,176.35,27.66479]
[1641074527169,3.0,176.41,176.33,1.26403144]
[1641074527369,3.0,176.41,176.3,47.9937]
[1641074527372,5.6660434,176.48,176.3,47.9937]
[1641074527373,3.0,176.42,176.3,47.9937]
[1641074527668,5.6660434,176.48,176.3,47.9937]
[1641074527669,3.0,176.47,176.3,47.9937]
[1641074528069,48.09853626,176.47,176.31,1.26599904]
[1641074528272,3.22107055,176.46,176.31,1.26599904]
[1641074528469,27.66479,176.44,176.34,27.66479]
[1641074529270,5.6660434,176.48,176.34,27.66479]
[1641074529472,3.0,176.48,176.34,27.66479]
[1641074529669,3.0,176.48,176.35,1.26599904]
[1641074529670,14.32082217,176.47,176.35,1.26599904]
[1641074530472,14.32082217,176.47,176.39,27.66479]
[1641074530873,3.0,176.48,176.39,27.66479]
[1641074531073,3.0,176.49,176.39,27.66479]
[1641074531473,3.0,176.49,176.39,32.45079]
[1641074531776,3.0,176.49,176.4,1.26599904]
[1641074532176,41.98561217,176.5,176.4,1.26599904]
[1641074532976,41.98561217,176.5,176.42,4.0]
[1641074533376,27.66479,176.51,176.42,12.6615524]
[1641074533776,27.66479,176.51,176.42,9.6615524]
[1641074534176,27.66479,176.51,176.42,5.6615524]
[1641074534381,27.66479,176.51,176.44,27.66479]
[1641074534980,27.66479,176.56,176.45,7.0]
[1641074535182,14.31256572,176.55,176.47,5.65979002]
[1641074535580,14.31256572,176.55,176.45,1.26599904]
[1641074535581,14.31256572,176.55,176.49,12.65930956]
[1641074535781,14.31256572,176.55,176.49,16.56030956]
[1641074536183,48.09853626,176.62,176.49,16.56030956]
[1641074536483,48.09853626,176.62,176.55,27.66479]
[1641074537985,48.09853626,176.62,176.55,34.04879]
[1641074538184,14.31256572,176.63,176.55,34.04879]
[1641074538886,27.66479,176.66,176.55,34.04879]
[1641074539085,30.66479,176.66,176.55,34.04879]
[1641074539286,3.0,176.58,176.52,27.66479]
[1641074539487,3.0,176.58,176.46,44.1985]
[1641074539686,3.0,176.59,176.46,44.1985]
[1641074540187,3.21861167,176.58,176.46,44.1985]
[1641074540391,27.66479,176.56,176.46,71.86329]
[1641074541389,12.78980426,176.55,176.47,1.26631986]
[1641074542189,12.78980426,176.55,176.46,27.66479]
[1641074542389,17.42380426,176.55,176.46,27.66479]
[1641074543089,2.75667485,176.54,176.46,27.66479]
[1641074543690,12.78980426,176.55,176.46,27.66479]
[1641074544492,12.78980426,176.55,176.46,31.66479]
[1641074544691,3.0,176.52,176.36,5.66331587]
[1641074544891,3.0,176.52,176.36,53.44251587]
[1641074545092,12.07181706,176.47,176.41,1.26622543]
[1641074545891,12.07181706,176.47,176.38,12.07181706]
[1641074546091,2.75667485,176.51,176.37,3.0]
[1641074546092,2.75667485,176.52,176.37,3.0]
[1641074546292,2.75667485,176.52,176.4,3.0]
[1641074546492,48.8962,176.54,176.44,27.66479]
[1641074546694,27.66479,176.56,176.44,27.66479]
[1641074547294,2.72010423,176.55,176.44,27.66479]
[1641074547896,27.66479,176.56,176.44,27.66479]
[1641074548598,12.07181706,176.49,176.45,1.26625758]
[1641074549397,12.07181706,176.49,176.44,27.66479]
[1641074550099,4.02366118,176.45,176.44,27.66479]
[1641074550798,4.02366118,176.45,176.44,28.93104518]
[1641074552900,4.02366118,176.45,176.44,1.26625518]
[1641074555501,12.07181706,176.49,176.44,4.26625518]
[1641074555702,12.07181706,176.49,176.44,6.92636555]
[1641074556402,12.07181706,176.52,176.45,1.26625518]
[1641074556603,12.07181706,176.52,176.45,8.26625518]
[1641074557204,12.07181706,176.51,176.46,1.26625518]
[1641074558008,12.07181706,176.51,176.46,8.26625518]
[1641074558407,12.07181706,176.51,176.46,7.0]
[1641074558606,12.07181706,176.51,176.46,34.66479]
[1641074560210,12.07181706,176.52,176.47,1.2665505]
[1641074562010,12.07181706,176.52,176.46,34.66479]
[1641074562810,12.07181706,176.52,176.47,1.26655499]
[1641074563609,12.07181706,176.51,176.46,34.66479]
[1641074564609,12.07181706,176.52,176.47,1.26655691]
[1641074564810,12.07181706,176.52,176.49,27.66479]
[1641074565212,12.07181706,176.52,176.49,21.22794066]
[1641074566213,2.75735993,176.55,176.49,21.22794066]
[1641074567315,2.75735993,176.55,176.49,28.22794066]
[1641074568217,2.75735993,176.55,176.49,25.22794066]
[1641074568818,2.75735993,176.56,176.49,25.22794066]
[1641074569216,2.75735993,176.56,176.49,21.22794066]
[1641074569416,2.75735993,176.56,176.46,34.66479]
[1641074569618,2.75735993,176.56,176.46,31.66479]
[1641074570118,2.75735993,176.56,176.46,34.66479]
[1641074571420,2.75735993,176.56,176.49,7.0]
[1641074572120,2.75735993,176.56,176.46,27.66479]
[1641074572418,2.75735993,176.56,176.44,5.66011037]
[1641074572819,2.75735993,176.56,176.45,27.66479]
[1641074573220,14.82917699,176.56,176.45,27.66479]
[1641074574018,14.82917699,176.55,176.45,27.66479]
[1641074574718,2.75735993,176.54,176.45,27.66479]
[1641074575119,2.75735993,176.54,176.44,5.66011037]
[1641074575518,12.07181706,176.51,176.46,1.2669528]
[1641074576320,12.07181706,176.48,176.43,1.2669528]
[1641074576922,12.07181706,176.47,176.41,1.2669528]
[1641074579024,12.07181706,176.47,176.44,4.0]
[1641074579222,12.07181706,176.46,176.44,4.0]
[1641074579626,12.07181706,176.46,176.42,5.6615524]
[1641074580326,12.73562469,176.48,176.42,5.6615524]
[1641074580525,9.97826476,176.48,176.42,5.6615524]
[1641074580726,12.06919789,176.52,176.46,5.66011037]
[1641074581128,12.06919789,176.52,176.46,33.32490037]
[1641074581329,59.42135626,176.58,176.47,1.2669528]
[1641074582028,12.19482414,176.57,176.47,1.2669528]
[1641074582927,3.0,176.51,176.47,1.2669528]
[1641074583133,3.0,176.5,176.47,1.2669528]
[1641074583328,30.66479,176.51,176.47,1.2669528]
[1641074583630,2.75609945,176.5,176.43,1.2669528]
[1641074585229,2.75609945,176.49,176.45,27.66479]
[1641074586134,2.75609945,176.48,176.37,139.60702482]
[1641074586935,2.75609945,176.47,176.38,7.74291279]
[1641074587133,27.66479,176.46,176.38,7.74291279]
[1641074587533,3.0,176.45,176.38,7.74291279]
[1641074587734,3.0,176.45,176.38,1.37998739]
[1641074587933,5.75609945,176.45,176.38,1.37998739]
[1641074588637,2.75609945,176.44,176.38,1.37998739]
[1641074589136,2.75609945,176.43,176.38,1.37998739]
[1641074589736,3.0,176.45,176.38,1.37998739]
[1641074590741,2.64483339,176.44,176.38,1.37998739]
[1641074591242,3.0,176.45,176.37,27.66479]
[1641074591441,27.66479,176.46,176.37,27.66479]
[1641074591642,86.87036626,176.55,176.37,27.66479]
[1641074591841,86.87036626,176.55,176.38,56.9691]
[1641074592242,89.87036626,176.55,176.38,56.9691]
[1641074592642,3.0,176.51,176.38,56.9691]
[1641074593043,3.0,176.53,176.38,56.9691]
[1641074593242,27.66479,176.48,176.38,56.9691]
[1641074593543,30.66479,176.48,176.37,27.66479]
[1641074594142,27.66479,176.48,176.37,27.66479]
[1641074594342,30.66479,176.48,176.37,27.66479]
[1641074594643,27.66479,176.48,176.37,27.66479]
[1641074594843,3.0,176.46,176.37,27.66479]
[1641074596145,2.64433128,176.45,176.38,7.74288009]
[1641074596845,2.64433128,176.45,176.38,1.37999828]
[1641074597747,5.64433128,176.45,176.38,1.37999828]
[1641074597946,3.0,176.45,176.38,1.37999828]
[1641074598446,2.64433128,176.44,176.38,1.37999828]
[1641074599348,30.30912128,176.44,176.38,1.37999828]
[1641074599848,2.64433128,176.43,176.36,7.74299965]
[1641074601752,2.64433128,176.44,176.36,7.74299965]
[1641074603451,2.64433128,176.44,176.37,27.66479]
[1641074604355,2.64433128,176.44,176.38,1.37999828]
[1641074606657,2.64433128,176.44,176.39,5.66251416]
[1641074607356,2.64433128,176.49,176.4,27.66479]
[1641074607956,2.64433128,176.49,176.41,1.37999828]
[1641074608159,12.37613361,176.53,176.41,7.74260235]
[1641074609059,2.64433128,176.53,176.41,1.37999828]
[1641074611160,3.0,176.5,176.41,1.37999828]
[1641074611366,5.645,176.5,176.41,1.37999828]
[1641074611863,5.645,176.5,176.4,27.66479]
[1641074612163,2.64433128,176.49,176.4,27.66479]
[1641074613962,2.64433128,176.5,176.4,27.66479]
[1641074614863,5.64433128,176.5,176.4,27.66479]
[1641074615563,4.00340757,176.48,176.4,27.66479]
[1641074617964,4.00340757,176.47,176.4,27.66479]
[1641074619165,4.00340757,176.48,176.4,27.66479]
[1641074619767,4.00340757,176.47,176.4,27.66479]
[1641074621273,4.00340757,176.43,176.41,1.3800171]
[1641074622676,4.00340757,176.44,176.41,1.3800171]
[1641074623376,4.00340757,176.44,176.41,4.3800171]
[1641074623578,4.00340757,176.46,176.43,27.66479]
[1641074623978,4.00340757,176.46,176.43,31.66479]
[1641074624178,4.00340757,176.46,176.43,27.66479]
[1641074624380,4.00340757,176.48,176.44,1.3800171]
[1641074624980,4.00340757,176.47,176.44,1.3800171]
[1641074625682,4.00340757,176.48,176.44,1.3800171]
[1641074626179,12.00836624,176.52,176.44,1.3800171]
[1641074627081,4.02325363,176.48,176.44,1.3800171]
[1641074627684,12.00836624,176.52,176.44,19.7508072]
[1641074628585,4.02315058,176.48,176.44,19.7508072]
[1641074629184,12.00836624,176.52,176.44,19.7508072]
[1641074629783,4.02316275,176.48,176.44,19.7508072]
[1641074630385,4.02316275,176.48,176.44,22.7508072]
[1641074630789,12.00836624,176.52,176.44,4.3800171]
[1641074630989,12.00836624,176.52,176.46,7.0]
[1641074631488,4.02277189,176.5,176.47,1.3800171]
[1641074631689,4.02277189,176.5,176.49,4.0]
[1641074631895,2.63055759,176.53,176.49,7.0]
[1641074632090,12.00836624,176.54,176.52,4.0]
[1641074632289,12.00836624,176.54,176.53,3.0]
[1641074632489,12.00836624,176.54,176.48,27.66479]
[1641074632691,12.00836624,176.54,176.47,1.3800171]
[1641074632892,8.66235384,176.59,176.44,12.00836624]
[1641074633190,8.66235384,176.59,176.43,27.66479]
[1641074633191,12.00836624,176.57,176.43,27.66479]
[1641074633391,15.00836624,176.57,176.43,27.66479]
[1641074633792,27.66479,176.54,176.43,27.66479]
[1641074638297,12.00836624,176.52,176.44,18.37079896]
[1641074639198,12.00836624,176.53,176.45,12.00836624]
[1641074639401,15.00836624,176.53,176.45,12.00836624]
[1641074639798,12.00836624,176.52,176.44,18.37079896]
[1641074640199,12.00836624,176.52,176.44,12.00836624]
[1641074640401,12.00836624,176.51,176.43,39.67315624]
[1641074641501,12.00836624,176.52,176.43,39.67315624]
[1641074642102,12.00836624,176.51,176.43,39.67315624]
[1641074643504,12.00836624,176.51,176.43,27.66479]
[1641074644005,12.00836624,176.51,176.43,39.67315624]
[1641074644903,12.00836624,176.51,176.43,42.67315624]
[1641074645704,12.00836624,176.51,176.43,30.66479]
[1641074647207,3.0,176.5,176.43,27.66479]
[1641074647408,3.0,176.5,176.42,12.00836624]
[1641074647612,3.0,176.43,176.42,12.00836624]
[1641074647810,3.0,176.43,176.42,6.624e-05]
[1641074648009,30.66479,176.43,176.34,27.66479]
[1641074648209,27.66479,176.43,176.39,12.07284909]
[1641074648410,30.66479,176.43,176.35,31.75656626]
[1641074648811,3.0,176.41,176.35,31.75656626]
[1641074649013,3.0,176.42,176.35,31.75656626]
[1641074649212,3.0,176.4,176.3,6.06147209]
[1641074649613,41.32774326,176.42,176.3,6.06147209]
[1641074649811,44.32774326,176.42,176.3,6.06147209]
[1641074650011,27.66479,176.37,176.3,6.06147209]
[1641074650212,27.66479,176.37,176.28,27.66479]
[1641074651013,27.66479,176.37,176.29,6.06147209]
[1641074652413,27.66479,176.37,176.26,53.85639082]
[1641074652916,27.66479,176.37,176.29,4.0]
[1641074655215,27.66479,176.37,176.29,10.06147209]
[1641074655816,27.66479,176.38,176.29,10.06147209]
[1641074656717,27.66479,176.38,176.29,6.06147209]
[1641074657418,27.66479,176.38,176.3,4.0]
[1641074658923,27.66479,176.38,176.3,7.0]
[1641074659124,27.66479,176.38,176.3,12.66540139]
[1641074659324,59.42135626,176.43,176.33,4.0]
[1641074659725,27.66479,176.43,176.32,48.3405]
[1641074659925,27.66479,176.43,176.32,52.3405]
[1641074660127,27.66479,176.43,176.32,80.00529]
[1641074660326,27.66479,176.43,176.32,76.00529]
[1641074660927,27.66479,176.43,176.32,80.00529]
[1641074661130,27.66479,176.43,176.33,6.06147209]
[1641074662030,27.66479,176.43,176.33,9.06147209]
[1641074662228,10.04047655,176.42,176.33,6.06147209]
[1641074663429,10.04047655,176.42,176.33,4.0]
[1641074664230,27.66479,176.43,176.35,27.66479]
[1641074664430,27.66479,176.43,176.36,4.0]
[1641074664632,59.42135626,176.46,176.36,4.0]
[1641074664830,59.42135626,176.46,176.35,27.66479]
[1641074665530,27.66479,176.46,176.36,6.06110799]
[1641074665731,27.66479,176.46,176.36,10.06110799]
[1641074665932,31.75656626,176.49,176.36,10.06110799]
[1641074666132,31.75656626,176.49,176.37,52.3482]
[1641074666331,59.42135626,176.49,176.37,52.3482]
[1641074666532,27.66479,176.49,176.37,52.3482]
[1641074667334,27.66479,176.49,176.4,4.0]
[1641074667734,10.03730481,176.48,176.4,4.0]
[1641074668433,10.03730481,176.48,176.38,6.06077199]
[1641074668633,10.03730481,176.48,176.41,4.0]
[1641074670734,10.03730481,176.48,176.41,7.0]
[1641074670935,27.66479,176.49,176.41,7.0]
[1641074671339,27.66479,176.49,176.41,4.0]
[1641074672139,27.66479,176.49,176.41,7.0]
[1641074672441,27.66479,176.49,176.41,4.0]
[1641074672741,27.66479,176.49,176.42,3.0]
[1641074673141,2.75714496,176.48,176.42,4.26675447]
[1641074673339,2.75714496,176.48,176.43,4.0]
[1641074673940,12.7930684,176.48,176.43,4.0]
[1641074676841,12.7930684,176.48,176.39,27.66479]
[1641074677442,12.7930684,176.48,176.4,4.0]
[1641074677641,2.75714496,176.48,176.39,27.66479]
[1641074677943,3.0,176.47,176.4,7.32737754]
[1641074678141,2.75714496,176.48,176.4,7.32737754]
[1641074678342,27.66479,176.45,176.4,7.32737754]
[1641074678542,27.66479,176.45,176.4,1.26675063]
[1641074678943,2.75714496,176.46,176.4,1.26675063]
[1641074679745,2.75714496,176.44,176.38,1.26675063]
[1641074680344,12.0739155,176.44,176.38,1.26675063]
[1641074682444,39.7387055,176.44,176.38,1.26675063]
[1641074683244,2.75714496,176.43,176.38,1.26675063]
[1641074683646,2.75714496,176.43,176.39,4.0]
[1641074684644,2.75714496,176.43,176.4,1.26675063]
[1641074684843,2.75714496,176.43,176.4,7.92675063]
[1641074685445,12.0739155,176.45,176.41,1.26675063]
[1641074685945,12.0739155,176.45,176.4,1.26675063]
[1641074687148,12.0739155,176.46,176.4,1.26675063]
[1641074692155,4.02409318,176.42,176.4,1.26675063]
[1641074694659,4.02388331,176.43,176.39,4.0]
[1641074695358,12.0739155,176.47,176.4,1.26660122]
[1641074695559,12.0739155,176.47,176.42,7.0]
[1641074695760,12.79458143,176.48,176.42,7.0]
[1641074695961,12.79458143,176.48,176.42,4.0]
[1641074696562,4.02353437,176.44,176.43,1.26663506]
[1641074697163,3.437e-05,176.44,176.43,1.26663506]
[1641074697464,31.75656626,176.52,176.42,31.66479]
[1641074697665,10.03743647,176.54,176.43,6.06018933]
[1641074698264,2.64587936,176.53,176.43,7.4375811]
[1641074698666,30.31066936,176.53,176.43,7.4375811]
[1641074700164,2.64587936,176.52,176.43,7.4375811]
[1641074700765,3.0,176.48,176.43,7.4375811]
[1641074701467,3.0,176.48,176.43,1.37739177]
[1641074701665,3.0,176.48,176.4,31.75656626]
[1641074701666,2.64587936,176.47,176.41,1.37739177]
[1641074702566,3.0,176.45,176.41,0.74719177]
[1641074702767,27.66479,176.45,176.36,31.75656626]
[1641074703867,9.83722262,176.44,176.34,6.24439208]
[1641074704767,27.66479,176.42,176.34,6.24439208]
[1641074704969,27.66479,176.42,176.34,9.24439208]
[1641074705169,9.83722262,176.44,176.34,6.24439208]
[1641074705969,27.66479,176.45,176.34,6.24439208]
[1641074708772,27.66479,176.45,176.34,12.23839208]
[1641074720892,27.66479,176.41,176.34,12.23839208]
[1641074721092,30.66479,176.41,176.34,12.23839208]
[1641074721294,30.66479,176.41,176.29,27.66479]
[1641074721893,30.66479,176.41,176.31,4.0]
[1641074722092,51.548,176.44,176.31,7.0]
[1641074722293,51.548,176.44,176.33,5.66427823]
[1641074722693,51.548,176.44,176.33,11.99917668]
[1641074722896,51.548,176.44,176.37,27.66479]
[1641074723097,27.66479,176.45,176.37,27.66479]
[1641074724900,49.263,176.48,176.37,27.66479]
[1641074725702,27.66479,176.49,176.37,27.66479]
[1641074726101,39.72571744,176.49,176.4,4.0]
[1641074726304,12.06092744,176.49,176.4,4.0]
[1641074726502,12.06092744,176.49,176.41,5.66187295]
[1641074726902,12.06092744,176.5,176.43,31.66479]
[1641074727101,12.06092744,176.5,176.43,83.97589]
[1641074727401,12.06092744,176.5,176.44,4.0]
[1641074728001,12.06092744,176.52,176.44,4.0]
[1641074728402,12.06092744,176.52,176.44,9.133]
[1641074728802,12.06092744,176.53,176.44,9.133]
[1641074730604,12.06092744,176.52,176.44,9.133]
[1641074732204,12.06092744,176.52,176.44,5.133]
[1641074732404,12.06092744,176.52,176.45,4.0]
[1641074733405,12.06092744,176.53,176.45,4.0]
[1641074735414,12.06092744,176.53,176.46,27.66479]
[1641074737719,12.06092744,176.53,176.46,30.66479]
[1641074738120,12.06092744,176.53,176.46,27.66479]
[1641074738721,12.06092744,176.55,176.48,4.0]
[1641074739121,12.06092744,176.55,176.48,7.0]
[1641074739324,12.06092744,176.55,176.48,12.28]
[1641074739521,12.06092744,176.55,176.53,27.66479]
[1641074739725,12.06092744,176.57,176.53,27.66479]
[1641074739923,12.06092744,176.57,176.49,49.2853]
[1641074740825,12.06092744,176.57,176.48,12.06092744]
[1641074741624,12.06092744,176.57,176.5,27.66479]
[1641074742124,12.06092744,176.56,176.5,27.66479]
[1641074743026,2.62828718,176.58,176.47,51.0759]
[1641074743624,14.68921462,176.59,176.47,51.0759]
[1641074744326,2.62828718,176.58,176.47,51.0759]
[1641074745224,2.62828718,176.59,176.47,51.0759]
[1641074747630,2.62828718,176.59,176.49,27.66479]
[1641074748731,5.62828718,176.59,176.49,27.66479]
[1641074749131,2.62828718,176.59,176.49,27.66479]
[1641074749431,5.62828718,176.59,176.49,27.66479]
[1641074749631,2.62828718,176.59,176.49,27.66479]
[1641074750333,12.06092744,176.55,176.5,1.37180555]
[1641074752433,12.06092744,176.54,176.5,1.37180555]
[1641074755438,12.37837791,176.57,176.5,1.37180555]
[1641074755439,12.06092744,176.56,176.5,1.37180555]
[1641074757539,4.02222693,176.52,176.5,1.37180555]
[1641074758941,4.02222693,176.51,176.5,1.37180555]
[1641074762048,4.02222693,176.52,176.5,1.37180555]
[1641074763749,7.02222693,176.52,176.47,12.06092744]
[1641074763948,4.02222693,176.52,176.47,12.06092744]
[1641074764550,12.06092744,176.51,176.43,39.72571744]
[1641074765450,4.02339558,176.46,176.43,27.66479]
[1641074766451,4.02339558,176.47,176.43,39.72571744]
[1641074766851,4.02339558,176.47,176.43,42.72571744]
[1641074767051,9.75009073,176.52,176.45,4.0]
[1641074767854,4.02271633,176.5,176.47,27.66479]
[1641074768254,12.06814899,176.54,176.47,27.66479]
[1641074769054,4.02272717,176.5,176.47,27.66479]
[1641074769855,12.06814899,176.54,176.47,31.66479]
[1641074770359,12.06814899,176.54,176.5,4.0]
[1641074771655,43.82471525,176.58,176.5,16.06092744]
[1641074771856,12.06814899,176.58,176.5,16.06092744]
[1641074772056,12.06814899,176.58,176.51,27.66479]
[1641074777465,12.06814899,176.57,176.51,27.66479]
[1641074777867,15.06814899,176.57,176.49,12.06092744]
[1641074778066,42.73293899,176.57,176.47,27.66479]
[1641074778266,12.06814899,176.54,176.47,27.66479]
[1641074779170,30.66479,176.57,176.47,27.66479]
[1641074779369,12.06807952,176.53,176.47,27.66479]
[1641074779969,9.78101281,176.56,176.47,27.66479]
[1641074780971,12.06816946,176.53,176.47,27.66479]
[1641074781770,9.78101281,176.56,176.47,27.66479]
[1641074782774,12.06820946,176.53,176.47,27.66479]
[1641074783375,9.78101281,176.56,176.47,27.66479]
[1641074784577,12.0681749,176.53,176.47,27.66479]
[1641074784778,12.0681749,176.53,176.47,21.22843005]
[1641074785380,12.0681749,176.54,176.47,21.22843005]
[1641074786180,4.02273942,176.5,176.47,21.22843005]
[1641074795386,4.02273942,176.51,176.47,33.28935749]
[1641074795586,4.02273942,176.51,176.47,39.75058389]
[1641074796386,31.75656626,176.59,176.54,109.349721]
[1641074796587,3.0,176.77,176.58,12.65594864]
[1641074796787,27.66479,176.78,176.66,27.66479]
[1641074796991,58.40369913,176.7,176.66,27.66479]
[1641074797191,50.38369913,176.7,176.66,27.66479]
[1641074797393,40.40369913,176.7,176.66,27.66479]
[1641074797794,27.66479,176.78,176.66,27.66479]
[1641074798295,3.0,176.77,176.66,27.66479]
[1641074798493,30.66479,176.78,176.66,27.66479]
[1641074798693,27.66479,176.78,176.66,27.66479]
[1641074798893,27.66479,176.78,176.66,32.17879]
[1641074799497,21.23539884,176.78,176.66,32.17879]
[1641074799697,21.23539884,176.78,176.67,13.80855992]
[1641074800598,21.23539884,176.78,176.66,32.17879]
[1641074801299,21.23539884,176.78,176.67,13.80855992]
[1641074801498,51.4641,176.8,176.67,13.80855992]
[1641074801699,51.4641,176.8,176.68,5.65323082]
[1641074802100,51.4641,176.8,176.7,4.0]
[1641074802300,3.0,176.84,176.7,4.0]
[1641074802701,30.66479,176.84,176.73,27.66479]
[1641074803300,27.66479,176.84,176.73,27.66479]
[1641074804400,3.0,176.83,176.74,2.66552982]
[1641074804800,27.66479,176.84,176.74,2.66552982]
[1641074805002,30.66479,176.84,176.74,2.66552982]
[1641074805702,30.66479,176.84,176.74,8.15652982]
[1641074805902,3.0,176.83,176.74,8.15652982]
[1641074806304,30.66479,176.84,176.74,8.15652982]
[1641074806605,30.66479,176.84,176.75,2.66552982]
[1641074806606,3.0,176.83,176.75,2.66552982]
[1641074807305,3.0,176.83,176.8,48.201099]
[1641074808105,30.66479,176.84,176.8,48.201099]